Cogmind - Beta 13 @@@ ROGUE MODE // 2024.04.21 @ 17:23:33 Player: LEWiKK Result: Destroyed by G-47 Trooper with Particle Gun Performance ------------- Evolutions (2) 1000 Regions Visited (3) 600 Robots Destroyed (27) 135 Value Destroyed (909) 909 Prototype IDs (3) 60 Alien Tech Used (0) 0 Bonus (0) 0 TOTAL SCORE: 2704 Bonus ------- None Cogmind --------- Core Integrity 0/550 Matter 275/300 Energy 99/100 System Corruption 0% Temperature Cool (9) Movement Core (50) Location -8/Materials Parts ------- > --- POWER (1) -------- (None) > --- PROPULSION (4) --- (None) > --- UTILITY (4) ------ (None) > --- WEAPON (2) ------- (None) > --- INVENTORY (5) ---- Light Ion Engine Compact Wheel ECM Suite Peak State ------------ > --- POWER ------------ Reinforced Ion Engine > --- PROPULSION ------- Aerolev Unit Aerolev Unit Aerolev Unit > --- UTILITY ---------- Small Storage Unit ECM Suite Light Armor Plating > --- WEAPON ----------- Small Laser Light Assault Rifle > --- INVENTORY -------- Ion Engine Light Ion Engine Improved Hover Unit ECM Suite Medium Laser Light Assault Rifle Light Assault Rifle Improved Assault Rifle [Rating: 20] Favorites ----------- Power Ion Engine Engine Ion Engine Propulsion Aerolev Unit Treads Light Treads Leg Aluminum Leg Wheel Wheel Hover Unit Aerolev Unit Flight Unit Flight Unit Utility Small Storage Unit Device ECM Suite Storage Small Storage Unit Protection Hardened Light Armor Plating Weapon Light Assault Rifle Energy Gun Small Laser Energy Cannon Plasma Cannon Ballistic Gun Light Assault Rifle Build | -11 -10 -9 -8 ------- Run | Yrd Mat Mat Mat Slots Evolved 4 | . . 2 2 Power . | . . . . Propulsion 2 | . . 1 1 Utility 2 | . . 1 1 Weapon . | . . . . Parts Attached 35 | . 5 18 12 Power 4 | . . 2 2 Engine 4 | . . 2 2 Core . | . . . . Reactor . | . . . . Propulsion 16 | . 5 7 4 Treads 1 | . 1 . . Leg 6 | . 2 . 4 Wheel 1 | . 1 . . Hover 7 | . 1 6 . Flight 1 | . . 1 . Utility 6 | . . 3 3 Device 2 | . . 1 1 Storage . | . . . . Processor . | . . . . Hackware . | . . . . Protection 4 | . . 2 2 Artifact . | . . . . Weapon 9 | . . 6 3 Energy Gun . | . . . . Energy Cannon 1 | . . . 1 Ballistic Gun 8 | . . 6 2 Ballistic Cannon . | . . . . Launcher . | . . . . Special Weapon . | . . . . Impact Weapon . | . . . . Slashing Weapon . | . . . . Piercing Weapon . | . . . . Special Melee Weapon . | . . . . Unidentified Prototypes 3 | . . 2 1 Parts Lost 23 | . . 7 16 Power 4 | . . 1 3 Propulsion 6 | . . 2 4 Utility 6 | . . 1 5 Weapon 7 | . . 3 4 Highest Loss Streak 14 | . . 7 14 To Critical Strikes . | . . . . Average Slot Usage (%) 73 | . 85 79 64 Engine 10 | . 14 10 8 Leg 10 | . 26 12 3 Hover 10 | . . 11 12 Device 5 | . . 5 8 Storage 10 | . 14 11 7 Protection 7 | . . 8 9 Energy Gun 4 | . 14 6 . Ballistic Gun 14 | . 14 13 14 Naked Turns 18 | . . . 18 Heaviest Build 22 | 10 10 22 22 Greatest Support 41 | 20 20 24 41 Greatest Overweight (x) 5 | . 1 5 1 Average Overweight (x) . | . . . . Largest Inventory Capacity 8 | . 8 8 8 Average Capacity 7 | . 8 8 7 Most Carried 8 | . 8 8 8 Average Carried 7 | . 6 6 7 Final Capacity 8 | 8 8 8 5 Final Carried 8 | 6 8 7 3 Class Distribution -------------------- 100% | Mutant Dominant Class ---------------- Mutant | -10/Materials Mutant | -9/Materials Mutant | -8/Materials Resources | -11 -10 -9 -8 ----------- Run | Yrd Mat Mat Mat Matter Collected 659 | 200 60 240 159 Remotely . | . . . . Salvage Created 993 | . 87 553 353 Parts 61 | . 7 33 21 Haulers Intercepted . | . . . . Recyclers Shooed . | . . . . Parts Field Recycled . | . . . . Retrieved Matter . | . . . . Parts Self-Destructed . | . . . . Prevented . | . . . . Kills | -11 -10 -9 -8 ------- Run | Yrd Mat Mat Mat Combat Hostiles Destroyed 27 | . 4 16 7 Guns 25 | . 4 16 5 Cannons 2 | . . . 2 Classes Destroyed 4 | . 2 2 . Swarmer 9 | . 3 6 . Grunt 11 | . 1 5 5 Duelist 1 | . . 1 . Sentry 6 | . . 4 2 Best Kill Streak 3 | . 3 3 2 Combat Bots Only 3 | . 3 3 2 Max Kills in Single Turn 1 | . 1 1 1 Gunslinging . | . . . . Exploded . | . . . . Melee . | . . . . Uniques/NPCs Destroyed . | . . . . Combat | -11 -10 -9 -8 -------- Run | Yrd Mat Mat Mat Hostile Shots Fired 298 | . 10 130 158 Missed 78 | . 4 31 43 Damage Taken 3347 | . 60 1413 1874 Core 906 | . 20 333 553 Absorbed by Shields . | . . . . Core Remaining (%) 69 | 100 92 16 . Volleys Fired 105 | . 10 63 32 Largest 2 | . 2 2 2 Hottest 105 | . 60 60 105 Shots Fired 190 | . 20 109 61 Gun 186 | . 20 109 57 Cannon 4 | . . . 4 Launcher . | . . . . Special . | . . . . Kinetic 162 | . 10 95 57 Thermal 28 | . 10 14 4 Explosive . | . . . . Electromagnetic . | . . . . Robot Hit Streak 20 | . 4 20 18 Robot Miss Streak 4 | . 3 3 4 Penetration Max . | . . . . Secondary Targets . | . . . . Shots Hit Robots 146 | . 12 85 49 Core Hits 59 | . 6 34 19 Critical Kills 1 | . . 1 . Critical Parts Destroyed 2 | . . . 2 Critical Strikes 3 | . . 1 2 Destroy 3 | . . 1 2 Melee Attacks . | . . . . Impact . | . . . . Slashing . | . . . . Piercing . | . . . . Sneak Attacks . | . . . . Combat Hostiles . | . . . . Follow-up Attacks . | . . . . Damage Inflicted 1576 | . 113 776 687 Guns 1476 | . 113 776 587 Cannons 100 | . . . 100 Explosions . | . . . . Melee . | . . . . Ramming . | . . . . Kinetic 1281 | . 56 638 587 Thermal 295 | . 57 138 100 Explosive . | . . . . Electromagnetic . | . . . . Impact . | . . . . Slashing . | . . . . Piercing . | . . . . Highest Corruption . | . . . . Average Corruption . | . . . . Corruption Purged . | . . . . Corruption Blocked . | . . . . Overload Shots . | . . . . Overflow Damage . | . . . . Projectiles . | . . . . Explosions . | . . . . Melee . | . . . . Knockbacks . | . . . . Impact . | . . . . Kinetic . | . . . . Secondary . | . . . . Self-Inflicted Damage . | . . . . Shots . | . . . . Rammed . | . . . . Targets Rammed . | . . . . Kicked . | . . . . Crushed . | . . . . Highest Temperature 293 | . 40 119 293 Average Temperature 51 | . 19 40 80 Received Heat Transfer 1356 | . 12 372 972 Siege Activations . | . . . . Robots Corrupted . | . . . . Combat Hostiles . | . . . . Parts Fried . | . . . . Impact Corruptions . | . . . . Robots Melted . | . . . . Combat Hostiles . | . . . . Parts Melted . | . . . . Heat Transferred 650 | . 125 325 200 Parts Sabotaged . | . . . . Parts Stolen . | . . . . Parts Stripped . | . . . . Power Chain Reactions . | . . . . Alert | -11 -10 -9 -8 ------- Run | Yrd Mat Mat Mat Peak Influence 245 | . 100 245 210 Initial 103 | . . 42 103 Average 98 | . 40 117 101 Maximum Alert Level 1 | . . 1 1 Low Security (%) 90 | . 100 89 87 Level 1 9 | . . 10 12 Level 2 . | . . . . Level 3 . | . . . . Level 4 . | . . . . Level 5 . | . . . . High Security . | . . . . Max Security . | . . . . Squads Dispatched 7 | . 1 2 4 Investigation 5 | . . 1 4 Extermination . | . . . . Reinforcement 2 | . 1 1 . Assault . | . . . . Garrison . | . . . . Intercept . | . . . . Searches Triggered . | . . . . Construction Impeded . | . . . . Haulers Reinforced . | . . . . Active Scanning Responses . | . . . . Cargo Convoy Interrupts . | . . . . Stealth | -11 -10 -9 -8 --------- Run | Yrd Mat Mat Mat Distress Signals 5 | . . 2 3 Communications Jammed . | . . . . Distress Signals . | . . . . Times Spotted 66 | . 5 27 34 Peak Tracking Total 14 | . 4 5 14 Tactical Retreats 6 | . . 3 3 Traps | -11 -10 -9 -8 ------- Run | Yrd Mat Mat Mat Traps Triggered 2 | . . . 2 Indirectly . | . . . . Trap Hack Attempts . | . . . . Triggered . | . . . . Disarmed . | . . . . Reprogrammed . | . . . . Reused . | . . . . Traps Extracted . | . . . . Installed . | . . . . Triggered . | . . . . Machines | -11 -10 -9 -8 ---------- Run | Yrd Mat Mat Mat Machines Disabled . | . . . . Max in Single Turn . | . . . . Machines Repaired . | . . . . Machines Dismantled . | . . . . Machines Sabotaged 1 | . . 1 . Overloaded Fab Kills . | . . . . Hacking | -11 -10 -9 -8 --------- Run | Yrd Mat Mat Mat Machines Accessed 15 | . . 6 9 Terminals 14 | . . 6 8 Fabricators . | . . . . Repair Stations . | . . . . Recycling Units . | . . . . Scanalyzers . | . . . . Garrison Access 1 | . . . 1 Total Hacks 44 | . . 19 25 Successful 22 | . . 13 9 Failed 22 | . . 6 16 Catastrophic 5 | . . . 5 Database Lockouts . | . . . . Manual 31 | . . 14 17 Terminals 41 | . . 19 22 Fabricators . | . . . . Repair Stations . | . . . . Recycling Units . | . . . . Scanalyzers . | . . . . Garrison Access 3 | . . . 3 Terminal Hacks 9 | . . 6 3 Robot Analysis 2 | . . 1 1 Branch Access Points 1 | . . . 1 Terminal Index 1 | . . 1 . Unreport Threat 1 | . . 1 . Registered Components 3 | . . 2 1 Zone Layout 1 | . . 1 . Fabricator Hacks . | . . . . Repair Station Hacks . | . . . . Recycling Unit Hacks . | . . . . Scanalyzer . | . . . . Garrison Access Hacks . | . . . . Unauthorized Hacks 13 | . . 7 6 Terminals 13 | . . 7 6 Botnet 10 | . . 6 4 Detonate 1 | . . . 1 Sabotage 2 | . . 1 1 Fabricators . | . . . . Repair Stations . | . . . . Recycling Units . | . . . . Scanalyzers . | . . . . Garrison Access . | . . . . Data Cores Recovered . | . . . . Used . | . . . . Hacking Detections 14 | . . 6 8 Full Trace Events 2 | . . . 2 Feedback Events . | . . . . Feedback Blocked . | . . . . Robot Schematics Acquired . | . . . . Robots Built . | . . . . Authchips . | . . . . Time . | . . . . Total Robot Build Rating . | . . . . Part Schematics Acquired . | . . . . Parts Built . | . . . . Authchips . | . . . . Time . | . . . . Total Part Build Rating . | . . . . Parts Repaired . | . . . . Time . | . . . . Parts Recycled . | . . . . Recycled Matter . | . . . . Retrieved Matter . | . . . . Retrieved Components . | . . . . Parts Scanalyzed . | . . . . Part Schematics Acquired . | . . . . Parts Damaged . | . . . . Bothacking | -11 -10 -9 -8 ------------ Run | Yrd Mat Mat Mat Used RIF Installer . | . . . . Robots Hacked . | . . . . Non-combat . | . . . . Combat . | . . . . Robot Hacks Applied . | . . . . Relay Couplers Released . | . . . . Fabnet Peak Effective % . | . . . . Robots Rewired . | . . . . Allies Hacked . | . . . . Hacks Repelled . | . . . . Allies | -11 -10 -9 -8 -------- Run | Yrd Mat Mat Mat Total Allies . | . . . . Largest Group . | . . . . Highest-Rated Group . | . . . . Highest-Rated Ally . | . . . . Total Orders . | . . . . Ally Attacks . | . . . . Total Damage . | . . . . Kills . | . . . . Allies Corrupted . | . . . . Allies Melted . | . . . . Intel | -11 -10 -9 -8 ------- Run | Yrd Mat Mat Mat Robot Analysis Total 2 | . . 1 1 Derelict Logs Recovered . | . . . . Drone Launches . | . . . . Drone Recoveries . | . . . . Exploration | -11 -10 -9 -8 ------------- Run | Yrd Mat Mat Mat Turns Passed 1733 | . 270 703 760 Spaces Moved 1078 | 1 181 412 484 Core 78 | . . 4 74 Treads 3 | . 3 . . Legs 520 | 1 169 246 104 Wheels 7 | . 7 . . Hover 469 | . 2 161 306 Flight 1 | . . 1 . Fastest Speed 42 | 120 80 42 46 Average Speed 100 | 120 119 93 100 Slowest Speed 440 | 120 160 440 190 Overloaded Moves . | . . . . Propulsion Burnouts . | . . . . Robots Hopped . | . . . . Cave-ins Triggered . | . . . . Exploration Rate (%) 30 | 1 35 37 50 Regions Visited 3 Branch Regions . Pre-discovered Areas . | . . . . Known Exits Taken . | . . . . Unknown Exits Taken 3 | 1 1 1 . Scrap Searched . | . . . . Spaces Dug . | . . . . Terrain Destroyed . | . . . . Melee . | . . . . Projectile . | . . . . AOE . | . . . . Terrain Rammed . | . . . . Walls Destroyed . | . . . . Machines Disabled . | . . . . Actions | -11 -10 -9 -8 --------- Run | Yrd Mat Mat Mat Total 1563 | . 216 639 708 Wait 300 | . 13 124 163 Move 1075 | . 180 411 484 Hop . | . . . . Pick Up 34 | . 5 16 13 Fast Attach . | . . . . Attach 24 | . . 12 12 Detach . | . . . . Swap 11 | . 5 6 . Drop 14 | . 3 7 4 Fire 105 | . 10 63 32 Melee . | . . . . Ram . | . . . . Kick . | . . . . Crush . | . . . . Escape Stasis . | . . . . Rewire . | . . . . Trap . | . . . . Miscellaneous . | . . . . Route ------- -11/Scrapyard -10/Materials -9/Materials -8/Materials History --------- Turn | Location | Event 1 | -11/Scrapyard | Discovered new exit (range 0) 1 | -11/Scrapyard | Entered Materials 251 | -10/Materials | Discovered new exit (range 15) 271 | -10/Materials | Entered another Materials area 271 | -9/Materials | Evolved 2 slots: Propulsion x1, Utility x1 303 | -9/Materials | Build established: Mutant 885 | -9/Materials | Core integrity fell below 50% 906 | -9/Materials | Core integrity fell below 20% 932 | -9/Materials | Lost 7 parts (1p2n1u3w) 964 | -9/Materials | Discovered new exit (range 16) 974 | -9/Materials | Entered another Materials area 974 | -8/Materials | Evolved 2 slots: Propulsion x1, Utility x1 1685 | -8/Materials | Core integrity fell below 50% 1721 | -8/Materials | Core integrity fell below 20% 1734 | -8/Materials | Destroyed by G-47 Trooper with Particle Gun Last Messages --------------- >>Access(Branch) No branch access points found. ALERT: Suspicious activity at Terminal M011. Dispatching Investigation squad. Connecting with Terminal... >>Trojan(Detonate) Trojan loaded successfully. Testing... Scanning machine control network... No applicable machines found. Infected machine control systems. >>Force(Sabotage) SYSTEM_VULNERABLE[Fusion Modulator] NETWORK_OVERLOAD_FAIL ALERT: Suspicious activity at Terminal M002. Dispatching Investigation squad. S-10 Pest destroyed. Adv. Weight Redist. System destroyed. K-01 Serf collects debris. K-01 Serf cleans the Pressure Siphon. Map ----- +----------------------------------------------------+ | ????????????????# #??????????+ + !#??# | | ????????????????# #??????????# # """"" #??# | | ????????????????# #??????????# #??""""?????# # | | ????????????????# #??????????# #????"??????##### | | ????????????????# #??????????# #???????????# | | ?????????????####+#####+#????# #???????????# | | ?????????????# # #????# #???????????# | | ?????????????# # ###### #???????????# | | ?????????????# # T #???????????# | | ?????????????# + = #???????????# | | ?????????????# # #???????????#! / | | ?????????????# # ###???????????# | | ?????????????# # = #?????????????# | | ?????????????# # %"""" #?????????????##### | | ?????????????# # *"""" #?????????????????? | | ?????????????########## """" #??????????????#### | | ?????????????????# #??????????????#]] | | ?????????????????# ^ #??????????????#]] | | ?????????????????# ^^ #??????????????#!! | | ?????????????????# ###########??????????????#!! | | ?????????????????# # ! ! ##??????????????#] [ | | ?????????????????# # r ]Y#??????????????#]] | | ?????????????????# # "Y" #???????????????#### | | ?????????????????# # """ ???????????????????? | | ?????????????????# #? ?????????????????????? | | ?????????????????# ####@######?????????????????? | | ?????????????????# #?????????????????? | | ?????????????????# gg t #?????????????????? | | ?????????????????# +?????????????????? | | ?????????????????########+## #?????????????????? | | ???????????????????????????? #?????????????????? | | ????????????????????????????? #?????????????????? | | ????????????????????????????? #?????????????????? | | ?????????????????????????????? #?????????????????? | | ???????????????????????????????#?????????????????? | | ?????????????????????????????????????????????????? | | ?????????????????????????????????????????????????? | | ?????????????????????????????????????????????????? | | ?????????????????????????????????????????????????? | | ?????????????????????????????????????????????????? | | ?????????????????????????????????????????????????? | | ?????????????????????????????????????????????????? | | ?????????????????????????????????????????????????? | | ?????????????????????????????????????????????????? | | ?????????????????????????????????????????????????? | | | | | | | | | | | +----------------------------------------------------+ Best States ------------- Heat Dissipation 31 Energy Generation 14 Energy Capacity 265 Matter Stores 300 Matter Capacity 300 Sight Range 16 Terrain Scan Density 10 ECM Strength 1 Additional Mass Support 9 Armor Coverage 300 Evasion (%) 56 Recoil Reduction 1 Item Schematics ----------------- None Robot Schematics ------------------ None Fabricated ------------ Nothing Alien Tech Used ----------------- None Achievements -------------- Universal Adapter Challenges ------------ None Game ------ Seed PiercingPhysicsGun Manual? 0 Play Time 00:23:32 Cumulative 34.4 hours Start 2024.04.21 @ 17:02:03 End 2024.04.21 @ 17:23:33 Sessions 1 Manual Loads 0 Difficulty Rogue Special Mode None Game No. 37 Rogue 37 Adventurer 0 Explorer 0 Win Type - Total 0 Types 0/0/0/0/0/0/0/0/0 Lore% 34 Gallery% 24 Achievement% 27 Wizard Run 0 Options --------- Layout 1 ASCII 0 Keyboard 0 Movement Mouse Keybinds 0 Fullscreen 2 Font 20/SmallcapsGlow Map View 54x42 Zoom Use 0% Tactical HUD 0 Map Filters NONE Filters NONE Steam 1 RUN: 118e394c-bb67-4ddf-b875-fd5393a0ab70